Workbook

Sheet Curva ABC
A1: CLIENTE | B1: VALOR | C1: Acumulado | D1: CLASSIFICAÇÃO | H1: Categoria | I1: Percentual | J1: Qtde. | K1: Valor | L1: Total
A2: SAVEA | B2: 6683.7 | C2: =B2/SUM($B$2:$B$90) -> 0.1029168949 | D2: =IF(B2>=LARGE($B$2:$B$90,$J$2),$H$2,IF(B2>=LARGE($B$2:$B$90,$J$3),$H$3,$H$4)) -> A | H2: A | I2: 0.2 | J2: =COUNT($B$2:$B$90)*I2 -> 17.8 | K2: =SUMIF(D:D,H2,B:B) -> 40647.79 | L2: =K2 -> 40647.79
A3: ERNSH | B3: 6205.39 | C3: =B3/SUM($B$2:$B$90)+C2 -> 0.1984686806 | D3: A | H3: B | I3: =0.3 -> 0.3 | J3: =COUNT($B$2:$B$90)*(I3+I2) -> 44.5 | K3: =SUMIF(D:D,H3,B:B) -> 16944.83 | L3: =L2+K3 -> 57592.62
A4: QUICK | B4: 5605.63 | C4: =B4/SUM($B$2:$B$90)+C3 -> 0.2847852468 | D4: A | H4: C | I4: =0.5 -> 0.5 | J4: =COUNT($B$2:$B$90)*(I4+I3+I2) -> 89 | K4: =SUMIF(D:D,H4,B:B) -> 7350.07 | L4: =L3+K4 -> 64942.69
A5: HUNGO | B5: 2755.24 | C5: =B5/SUM($B$2:$B$90)+C4 -> 0.3272109609 | D5: A
A6: RATTC | B6: 2134.21 | C6: =B6/SUM($B$2:$B$90)+C5 -> 0.360073936 | D6: A
A7: QUEEN | B7: 1982.7 | C7: =B7/SUM($B$2:$B$90)+C6 -> 0.3906039309 | D7: A
A8: FOLKO | B8: 1678.08 | C8: =B8/SUM($B$2:$B$90)+C7 -> 0.4164433287 | D8: A
A9: BERGS | B9: 1559.52 | C9: =B9/SUM($B$2:$B$90)+C8 -> 0.4404571169 | D9: A
A10: FRANK | B10: 1403.44 | C10: =B10/SUM($B$2:$B$90)+C9 -> 0.4620675553 | D10: A
A11: MEREP | B11: 1394.22 | C11: =B11/SUM($B$2:$B$90)+C10 -> 0.4835360223 | D11: A
A12: BONAP | B12: 1357.87 | C12: =B12/SUM($B$2:$B$90)+C11 -> 0.5044447651 | D12: A
A13: WHITC | B13: 1353.06 | C13: =B13/SUM($B$2:$B$90)+C12 -> 0.5252794425 | D13: A
A14: HILAA | B14: 1259.16 | C14: =B14/SUM($B$2:$B$90)+C13 -> 0.5446682298 | D14: A
A15: PICCO | B15: 1186.11 | C15: =B15/SUM($B$2:$B$90)+C14 -> 0.5629321791 | D15: A
A16: GREAL | B16: 1087.61 | C16: =B16/SUM($B$2:$B$90)+C15 -> 0.5796794066 | D16: A
A17: LEHMS | B17: 1017.03 | C17: =B17/SUM($B$2:$B$90)+C16 -> 0.5953398296 | D17: A
A18: RICSU | B18: 1001.29 | C18: =B18/SUM($B$2:$B$90)+C17 -> 0.6107578851 | D18: A
A19: OLDWO | B19: 983.53 | C19: =B19/SUM($B$2:$B$90)+C18 -> 0.6259024688 | D19: A
A20: VAFFE | B20: 947.34 | C20: =B20/SUM($B$2:$B$90)+C19 -> 0.6404897918 | D20: B
A21: SEVES | B21: 913.81 | C21: =B21/SUM($B$2:$B$90)+C20 -> 0.6545608135 | D21: B
A22: OTTIK | B22: 862.74 | C22: =B22/SUM($B$2:$B$90)+C21 -> 0.6678454496 | D22: B
A23: EASTC | B23: 832.34 | C23: =B23/SUM($B$2:$B$90)+C22 -> 0.6806619806 | D23: B
A24: WARTH | B24: 822.48 | C24: =B24/SUM($B$2:$B$90)+C23 -> 0.6933266854 | D24: B
A25: SUPRD | B25: 821.23 | C25: =B25/SUM($B$2:$B$90)+C24 -> 0.7059721425 | D25: B
A26: KOENE | B26: 813.68 | C26: =B26/SUM($B$2:$B$90)+C25 -> 0.7185013433 | D26: B
A27: BOTTM | B27: 793.95 | C27: =B27/SUM($B$2:$B$90)+C26 -> 0.7307267377 | D27: B
A28: LILAS | B28: 734.41 | C28: =B28/SUM($B$2:$B$90)+C27 -> 0.7420353238 | D28: B
A29: HANAR | B29: 724.77 | C29: =B29/SUM($B$2:$B$90)+C28 -> 0.7531954713 | D29: B
A30: LINOD | B30: 673.81 | C30: =B30/SUM($B$2:$B$90)+C29 -> 0.7635709269 | D30: B
A31: FOLIG | B31: 637.94 | C31: =B31/SUM($B$2:$B$90)+C30 -> 0.7733940494 | D31: B
A32: LAMAI | B32: 635.82 | C32: =B32/SUM($B$2:$B$90)+C31 -> 0.7831845278 | D32: B
A33: RICAR | B33: 632.95 | C33: =B33/SUM($B$2:$B$90)+C32 -> 0.7929308133 | D33: B
A34: BLONP | B34: 623.66 | C34: =B34/SUM($B$2:$B$90)+C33 -> 0.8025340496 | D34: =IF(B34>=LARGE($B$2:$B$90,$J$2),$H$2,IF(B34>=LARGE($B$2:$B$90,$J$3),$H$3,$H$4)) -> B
A35: GODOS | B35: 568.27 | C35: =B35/SUM($B$2:$B$90)+C34 -> 0.8112843801 | D35: B
A36: SPLIR | B36: 558.67 | C36: =B36/SUM($B$2:$B$90)+C35 -> 0.819886888 | D36: B
A37: VICTE | B37: 493.25 | C37: =B37/SUM($B$2:$B$90)+C36 -> 0.8274820461 | D37: B
A38: TORTU | B38: 475.63 | C38: =B38/SUM($B$2:$B$90)+C37 -> 0.8348058881 | D38: B
A39: AROUT | B39: 471.95 | C39: =B39/SUM($B$2:$B$90)+C38 -> 0.8420730647 | D39: B
A40: MAGAA | B40: 469.75 | C40: =B40/SUM($B$2:$B$90)+C39 -> 0.8493063654 | D40: B
A41: MAISD | B41: 458.91 | C41: =B41/SUM($B$2:$B$90)+C40 -> 0.8563727496 | D41: B
A42: SIMOB | B42: 448.85 | C42: =B42/SUM($B$2:$B$90)+C41 -> 0.863284228 | D42: B
A43: WANDK | B43: 432.87 | C43: =B43/SUM($B$2:$B$90)+C42 -> 0.8699496433 | D43: B
A44: CHOPS | B44: 367.24 | C44: =B44/SUM($B$2:$B$90)+C43 -> 0.8756044753 | D44: B
A45: PRINI | B45: 364.86 | C45: =B45/SUM($B$2:$B$90)+C44 -> 0.8812226595 | D45: B
A46: ISLAT | B46: 363.65 | C46: =B46/SUM($B$2:$B$90)+C45 -> 0.886822212 | D46: B
A47: QUEDE | B47: 327.55 | C47: =B47/SUM($B$2:$B$90)+C46 -> 0.8918658898 | D47: C
A48: GOURL | B48: 322.38 | C48: =B48/SUM($B$2:$B$90)+C47 -> 0.8968299588 | D48: C
A49: MORGK | B49: 322.04 | C49: =B49/SUM($B$2:$B$90)+C48 -> 0.9017887925 | D49: C
A50: REGGC | B50: 319.56 | C50: =B50/SUM($B$2:$B$90)+C49 -> 0.9067094387 | D50: C
A51: OCEAN | B51: 306.64 | C51: =B51/SUM($B$2:$B$90)+C50 -> 0.9114311403 | D51: C
A52: DRACD | B52: 306.04 | C52: =B52/SUM($B$2:$B$90)+C51 -> 0.9161436029 | D52: C
A53: BSBEV | B53: 281.31 | C53: =B53/SUM($B$2:$B$90)+C52 -> 0.9204752683 | D53: C
A54: FURIB | B54: 278.67 | C54: =B54/SUM($B$2:$B$90)+C53 -> 0.9247662824 | D54: C
A55: PERIC | B55: 277.96 | C55: =B55/SUM($B$2:$B$90)+C54 -> 0.9290463638 | D55: C
A56: SANTG | B56: 275.5 | C56: =B56/SUM($B$2:$B$90)+C55 -> 0.9332885657 | D56: C
A57: TRADH | B57: 274.56 | C57: =B57/SUM($B$2:$B$90)+C56 -> 0.9375162932 | D57: C
A58: ANTON | B58: 268.52 | C58: =B58/SUM($B$2:$B$90)+C57 -> 0.9416510157 | D58: C
A59: THEBI | B59: 262.09 | C59: =B59/SUM($B$2:$B$90)+C58 -> 0.9456867278 | D59: C
A60: FAMIA | B60: 232.75 | C60: =B60/SUM($B$2:$B$90)+C59 -> 0.9492706569 | D60: C
A61: ALFKI | B61: 225.58 | C61: =B61/SUM($B$2:$B$90)+C60 -> 0.9527441811 | D61: C
A62: RANCH | B62: 219.18 | C62: =B62/SUM($B$2:$B$90)+C61 -> 0.9561191568 | D62: C
A63: HUNGC | B63: 207.08 | C63: =B63/SUM($B$2:$B$90)+C62 -> 0.9593078143 | D63: C
A64: LETSS | B64: 202.11 | C64: =B64/SUM($B$2:$B$90)+C63 -> 0.9624199429 | D64: C
A65: WELLI | B65: 194.71 | C65: =B65/SUM($B$2:$B$90)+C64 -> 0.9654181248 | D65: C
A66: BOLID | B66: 191.17 | C66: =B66/SUM($B$2:$B$90)+C65 -> 0.9683617971 | D66: =IF(B66>=LARGE($B$2:$B$90,$J$2),$H$2,IF(B66>=LARGE($B$2:$B$90,$J$3),$H$3,$H$4)) -> C
A67: COMMI | B67: 187.82 | C67: =B67/SUM($B$2:$B$90)+C66 -> 0.9712538855 | D67: C
A68: WOLZA | B68: 175.74 | C68: =B68/SUM($B$2:$B$90)+C67 -> 0.9739599638 | D68: C
A69: FRANR | B69: 171.42 | C69: =B69/SUM($B$2:$B$90)+C68 -> 0.9765995218 | D69: C
A70: BLAUS | B70: 168.26 | C70: =B70/SUM($B$2:$B$90)+C69 -> 0.9791904216 | D70: C
A71: THECR | B71: 129.96 | C71: =B71/SUM($B$2:$B$90)+C70 -> 0.9811915706 | D71: C
A72: TOMSP | B72: 125.97 | C72: =B72/SUM($B$2:$B$90)+C71 -> 0.9831312808 | D72: C
A73: SPECD | B73: 108.28 | C73: =B73/SUM($B$2:$B$90)+C72 -> 0.984798597 | D73: C
A74: ANATR | B74: 97.42 | C74: =B74/SUM($B$2:$B$90)+C73 -> 0.9862986889 | D74: C
A75: WILMK | B75: 88.41 | C75: =B75/SUM($B$2:$B$90)+C74 -> 0.987660043 | D75: C
A76: LACOR | B76: 87.49 | C76: =B76/SUM($B$2:$B$90)+C75 -> 0.9890072308 | D76: C
A77: LONEP | B77: 79.86 | C77: =B77/SUM($B$2:$B$90)+C76 -> 0.9902369304 | D77: C
A78: FRANS | B78: 75.13 | C78: =B78/SUM($B$2:$B$90)+C77 -> 0.9913937966 | D78: C
A79: CACTU | B79: 72.76 | C79: =B79/SUM($B$2:$B$90)+C78 -> 0.992514169 | D79: C
A80: TRAIH | B80: 70.01 | C80: =B80/SUM($B$2:$B$90)+C79 -> 0.9935921964 | D80: C
A81: GROSR | B81: 67.8 | C81: =B81/SUM($B$2:$B$90)+C80 -> 0.9946361939 | D81: C
A82: ROMEY | B82: 64.47 | C82: =B82/SUM($B$2:$B$90)+C81 -> 0.9956289153 | D82: C
A83: DUMON | B83: 63.7 | C83: =B83/SUM($B$2:$B$90)+C82 -> 0.9966097801 | D83: C
A84: VINET | B84: 58.41 | C84: =B84/SUM($B$2:$B$90)+C83 -> 0.9975091885 | D84: C
A85: CONSH | B85: 53.62 | C85: =B85/SUM($B$2:$B$90)+C84 -> 0.9983348395 | D85: C
A86: GALED | B86: 37.98 | C86: =B86/SUM($B$2:$B$90)+C85 -> 0.9989196629 | D86: C
A87: NORTS | B87: 37.59 | C87: =B87/SUM($B$2:$B$90)+C86 -> 0.9994984809 | D87: C
A88: LAZYK | B88: 19.4 | C88: =B88/SUM($B$2:$B$90)+C87 -> 0.9997972058 | D88: C
A89: LAUGB | B89: 9.92 | C89: =B89/SUM($B$2:$B$90)+C88 -> 0.9999499559 | D89: C
A90: CENTC | B90: 3.25 | C90: =B90/SUM($B$2:$B$90)+C89 -> 1 | D90: C
